Cogmind - Beta 16 @@@ ROGUE MODE // 2025.11.08 @ 07:55:40 Player: beans Result: Destroyed by exploding Nuclear Reactor Performance ------------- Evolutions (1) 500 Regions Visited (2) 400 Robots Destroyed (27) 135 Value Destroyed (477) 477 Prototype IDs (0) 0 Alien Tech Used (0) 0 Bonus (0) 0 TOTAL SCORE: 1512 Bonus ------- None Cogmind --------- Core Integrity 0/400 Matter 300/300 Energy 100/100 System Corruption 0% Temperature Cool (4) Movement Core (200) Ox3 Location -9/Materials Parts ------- > --- POWER (1) -------- (None) > --- PROPULSION (2) --- (None) > --- UTILITY (2) ------ Medium Storage Unit > --- WEAPON (4) ------- Light Assault Rifle Light Assault Rifle > --- INVENTORY (10) --- High-capacity Storage Unit Authchip [R/Combat] Authchip [R/Combat] Authchip [R/Combat] Authchip [Propulsion] Peak State ------------ > --- POWER ------------ Ion Engine > --- PROPULSION ------- Light Treads Light Treads > --- UTILITY ---------- Heat Sink Targeting Computer > --- WEAPON ----------- Small Laser Small Laser > --- INVENTORY -------- High-capacity Storage Unit Light Assault Rifle [Rating: 7] Favorites ----------- Power Ion Engine Engine Ion Engine Propulsion Light Treads Treads Light Treads Leg Aluminum Leg Utility Heat Sink Device Heat Sink Storage Medium Storage Unit Processor Targeting Computer Weapon Light Assault Rifle Energy Gun Small Laser Ballistic Gun Light Assault Rifle Build | -11 -10 -9 ------- Run | Yrd Mat Mat Slots Evolved 2 | . . 2 Power . | . . . Propulsion . | . . . Utility . | . . . Weapon 2 | . . 2 Parts Attached 15 | 3 7 5 Power 1 | . 1 . Engine 1 | . 1 . Core . | . . . Reactor . | . . . Propulsion 4 | 2 . 2 Treads 2 | 2 . . Leg 2 | . . 2 Wheel . | . . . Hover . | . . . Flight . | . . . Utility 3 | . 3 . Device 1 | . 1 . Storage 1 | . 1 . Processor 1 | . 1 . Hackware . | . . . Protection . | . . . Artifact . | . . . Weapon 7 | 1 3 3 Energy Gun 2 | . 2 . Energy Cannon . | . . . Ballistic Gun 5 | 1 1 3 Ballistic Cannon . | . . . Launcher . | . . . Special Weapon . | . . . Impact Weapon . | . . . Slashing Weapon . | . . . Piercing Weapon . | . . . Special Melee Weapon . | . . . Unidentified Prototypes . | . . . Parts Lost 10 | . 2 8 Power 1 | . 1 . Propulsion 4 | . . 4 Utility 1 | . . 1 Weapon 4 | . 1 3 Highest Loss Streak 5 | . 2 5 To Critical Strikes . | . . . Average Backups 2 | . 1 5 Power . | . . . Propulsion . | . . . Utility 2 | . 1 5 Weapon . | . . . Tool/Special . | . . . Unused Backups 5 | . . 5 Power . | . . . Propulsion . | . . . Utility 5 | . . 5 Weapon . | . . . Tool/Special . | . . . Average Slot Usage (%) 69 | . 82 53 Engine 5 | . 9 . Treads 20 | . 28 10 Device 9 | . 12 6 Storage 6 | . 1 11 Processor 2 | . 3 . Energy Gun 7 | . 13 . Ballistic Gun 17 | . 13 23 Peak Build Rating 7 | 3 7 7 Average Rating 5 | 2 6 5 On Entrance 3 | . 3 7 Avg Prop Armor Cover (%) . | . . . Naked Turns . | . . . Heaviest Build 13 | 1 13 13 Greatest Support 40 | 40 40 40 Greatest Overweight (x) 4 | . . 4 Average Overweight (x) . | . . 1 Largest Inventory Capacity 10 | 5 10 10 Average Capacity 7 | 5 5 10 Most Carried 6 | 2 5 6 Average Carried 3 | . 1 5 Final Capacity 10 | 5 10 10 Final Carried 5 | . 5 5 Class Distribution -------------------- 83% | Mutant 14% | Scavenger-Gunner Dominant Class ---------------- Mutant | -10/Materials Mutant | -9/Materials Resources | -11 -10 -9 ----------- Run | Yrd Mat Mat Matter Collected 513 | 212 162 139 Remotely . | . . . Salvage Created 703 | . 292 411 Parts 46 | . 23 23 Haulers Intercepted 1 | . 1 . Recyclers Shooed 2 | . 1 1 Parts Field Recycled . | . . . Retrieved Matter . | . . . Parts Self-Destructed . | . . . Prevented . | . . . Parts Restored . | . . . Kills | -11 -10 -9 ------- Run | Yrd Mat Mat Combat Hostiles Destroyed 22 | . 10 12 Guns 22 | . 10 12 Classes Destroyed 7 | . 4 3 Worker 1 | . 1 . Hauler 1 | . 1 . Recycler 1 | . . 1 Operator 1 | . . 1 Watcher 1 | . . 1 Swarmer 13 | . 6 7 Grunt 9 | . 4 5 Best Kill Streak 9 | . 4 9 Combat Bots Only 7 | . 4 7 Max Kills in Single Turn 1 | . 1 1 Gunslinging . | . . . Exploded . | . . . Melee . | . . . Uniques/NPCs Destroyed . | . . . Combat | -11 -10 -9 -------- Run | Yrd Mat Mat Hostile Shots Fired 214 | . 83 131 Missed 67 | . 26 41 Hits 147 | . 57 90 Projectile 147 | . 57 90 Damage Taken 1362 | . 476 886 Core 504 | . 101 403 Absorbed by Shields . | . . . Core Remaining (%) 79 | 100 59 . Volleys Fired 109 | . 50 59 Largest 3 | . 2 3 Hottest 80 | . 80 60 Shots Fired 203 | . 92 111 Gun 203 | . 92 111 Cannon . | . . . Launcher . | . . . Special . | . . . Kinetic 165 | . 54 111 Thermal 38 | . 38 . Explosive . | . . . Electromagnetic . | . . . Robot Hit Streak 12 | . 7 12 Robot Miss Streak 5 | . 4 5 Penetration Max . | . . . Secondary Targets 3 | . 1 2 Max Gunslinging Chain 1 | . 1 1 Shots Hit Robots 125 | . 51 74 Core Hits 48 | . 21 27 Critical Kills 2 | . 1 1 Critical Parts Destroyed . | . . . Critical Strikes 2 | . 1 1 Destroy 2 | . 1 1 Melee Attacks . | . . . Impact . | . . . Slashing . | . . . Piercing . | . . . Sneak Attacks . | . . . Combat Hostiles . | . . . Follow-up Attacks . | . . . Damage Inflicted 1119 | . 499 620 Guns 1119 | . 499 620 Cannons . | . . . Explosions . | . . . Melee . | . . . Ramming . | . . . Kinetic 894 | . 274 620 Thermal 225 | . 225 . Explosive . | . . . Electromagnetic . | . . . Impact . | . . . Slashing . | . . . Piercing . | . . . Highest Corruption . | . . . Average Corruption . | . . . Corruption Purged . | . . . Corruption Blocked . | . . . Overload Shots . | . . . Overflow Damage . | . . . Projectiles . | . . . Explosions . | . . . Melee . | . . . Knockbacks . | . . . Impact . | . . . Kinetic . | . . . Secondary . | . . . Self-Inflicted Damage . | . . . Shots . | . . . Rammed 1 | . . 1 Targets Rammed 1 | . . 1 Kicked . | . . . Crushed . | . . . Highest Temperature 14 | . 6 14 Average Temperature 4 | . 3 5 Received Heat Transfer 174 | . 54 120 Siege Activations . | . . . Martial Activations . | . . . Shielding Activations . | . . . Robots Disrupted . | . . . Combat Hostiles . | . . . Robots Corrupted . | . . . Combat Hostiles . | . . . Parts Fried . | . . . Impact Corruptions . | . . . Robots Melted . | . . . Combat Hostiles . | . . . Parts Melted . | . . . Heat Transferred 525 | . 525 . Parts Sabotaged . | . . . Parts Stolen . | . . . Parts Stripped . | . . . Power Chain Reactions . | . . . Alert | -11 -10 -9 ------- Run | Yrd Mat Mat Maximum Alert Level . | . . . Low Security (%) 100 | 100 100 100 Level 1 . | . . . Level 2 . | . . . Level 3 . | . . . Level 4 . | . . . Level 5 . | . . . High Security . | . . . Max Security . | . . . Peak Influence 127 | . 70 127 Initial 27 | . . 27 Average 32 | . 21 50 Influence Increases 554 | . 242 312 Destroy 0b10 Robot/C 440 | . 200 240 Destroy 0b10 Robot/NC 25 | . 10 15 Destroy Leader 74 | . 32 42 Lose Combat Pursuer 15 | . . 15 Influence Decreases 465 | . 175 290 Entered New Map 40 | . . 40 Time Decay 350 | . 165 185 Lost Part 75 | . 10 65 Squads Dispatched 3 | . 1 2 Investigation 1 | . . 1 Extermination . | . . . Reinforcement 2 | . 1 1 Assault . | . . . Garrison . | . . . Intercept . | . . . Searches Triggered . | . . . Construction Impeded . | . . . Haulers Reinforced . | . . . Active Scanning Responses . | . . . Cargo Convoy Interrupts . | . . . Stealth | -11 -10 -9 --------- Run | Yrd Mat Mat Distress Signals 6 | . 4 2 Communications Jammed . | . . . Distress Signals . | . . . Times Spotted 37 | . 17 20 Peak Tracking Total 6 | . 4 6 Tactical Retreats 1 | . . 1 Traps | -11 -10 -9 ------- Run | Yrd Mat Mat Traps Triggered 1 | . . 1 Indirectly . | . . . Trap Hack Attempts . | . . . Triggered . | . . . Disarmed . | . . . Reprogrammed . | . . . Reused . | . . . Traps Extracted . | . . . Installed . | . . . Triggered . | . . . Machines | -11 -10 -9 ---------- Run | Yrd Mat Mat Machines Disabled . | . . . Max in Single Turn . | . . . Machines Repaired . | . . . Machines Dismantled . | . . . Machines Sabotaged . | . . . Overloaded Fab Kills . | . . . Hacking | -11 -10 -9 --------- Run | Yrd Mat Mat Machines Accessed . | . . . Terminals . | . . . Fabricators . | . . . Repair Stations . | . . . Recycling Units . | . . . Scanalyzers . | . . . Garrison Access . | . . . Total Hacks . | . . . Successful . | . . . Failed . | . . . Catastrophic . | . . . Database Lockouts . | . . . Manual . | . . . Terminals . | . . . Fabricators . | . . . Repair Stations . | . . . Recycling Units . | . . . Scanalyzers . | . . . Garrison Access . | . . . Terminal Hacks . | . . . Fabricator Hacks . | . . . Repair Station Hacks . | . . . Recycling Unit Hacks . | . . . Scanalyzer . | . . . Garrison Access Hacks . | . . . Unauthorized Hacks . | . . . Terminals . | . . . Fabricators . | . . . Repair Stations . | . . . Recycling Units . | . . . Scanalyzers . | . . . Garrison Access . | . . . Data Cores Recovered . | . . . Used . | . . . Hacking Detections . | . . . Full Trace Events . | . . . Feedback Events . | . . . Feedback Blocked . | . . . Robot Schematics Acquired . | . . . Robots Built . | . . . Authchips . | . . . Time . | . . . Total Robot Build Rating . | . . . Part Schematics Acquired . | . . . Parts Built . | . . . Authchips . | . . . Time . | . . . Total Part Build Rating . | . . . Part Studies Acquired . | . . . Parts Repaired . | . . . Time . | . . . Parts Recycled . | . . . Recycled Matter . | . . . Retrieved Matter . | . . . Retrieved Components . | . . . Parts Scanalyzed . | . . . Part Schematics Acquired . | . . . Parts Damaged . | . . . Bothacking | -11 -10 -9 ------------ Run | Yrd Mat Mat Used RIF Installer . | . . . Robots Hacked . | . . . Non-combat . | . . . Combat . | . . . Robot Hacks Applied . | . . . Relay Couplers Released . | . . . Fabnet Peak Effective % . | . . . Robots Rewired . | . . . Allies Hacked . | . . . Hacks Repelled . | . . . Allies | -11 -10 -9 -------- Run | Yrd Mat Mat Total Allies . | . . . Largest Group . | . . . Highest-Rated Group . | . . . Highest-Rated Ally . | . . . Total Orders . | . . . Ally Attacks . | . . . Total Damage . | . . . Kills . | . . . Allies Corrupted . | . . . Allies Melted . | . . . Intel | -11 -10 -9 ------- Run | Yrd Mat Mat Active Infowar (turns) . | . . . Robot Analysis Total . | . . . Derelict Logs Recovered . | . . . Drone Launches . | . . . Drone Recoveries . | . . . Exploration | -11 -10 -9 ------------- Run | Yrd Mat Mat Turns Passed 1168 | 67 599 502 Spaces Moved 464 | 43 275 146 Core 60 | 6 . 54 Treads 398 | 37 275 86 Legs 6 | . . 6 Wheels . | . . . Hover . | . . . Flight . | . . . Fastest Speed 50 | 50 160 120 Average Speed 167 | 144 160 189 Slowest Speed 250 | 160 160 250 Overloaded Moves . | . . . Propulsion Burnouts . | . . . Robots Hopped . | . . . Potential Cave-ins . | . . . Cave-ins Triggered . | . . . Exploration Rate (%) 21 | 4 42 17 Regions Visited 2 Branch Regions . Pre-discovered Areas . | . . . Known Exits Taken . | . . . Unknown Exits Taken 2 | 1 1 . Scrap Searched . | . . . Spaces Dug . | . . . Terrain Destroyed . | . . . Melee . | . . . Projectile . | . . . AOE . | . . . Terrain Rammed . | . . . Walls Destroyed . | . . . Machines Disabled . | . . . Actions | -11 -10 -9 --------- Run | Yrd Mat Mat Total 694 | 48 353 293 Wait 84 | . 7 77 Move 462 | 42 274 146 Hop . | . . . Pick Up 18 | 3 10 5 Fast Attach 2 | . 2 . Attach 13 | 3 5 5 Detach . | . . . Swap 2 | . 2 . Drop 3 | . 3 . Fire 109 | . 50 59 Melee . | . . . Ram 1 | . . 1 Kick . | . . . Crush . | . . . Escape Stasis . | . . . Rewire . | . . . Trap . | . . . Miscellaneous . | . . . Route ------- -11/Scrapyard -10/Materials -9/Materials History --------- Turn | Location | Event 12 | -11/Scrapyard | Discovered new exit (range 15) 68 | -11/Scrapyard | Entered Materials 318 | -10/Materials | Build established: Mutant 656 | -10/Materials | Discovered new exit (range 9) 667 | -10/Materials | Entered another Materials area 667 | -9/Materials | Evolved 2 slots: Weapon x2 977 | -9/Materials | Core integrity fell below 50% 1005 | -9/Materials | Lost 5 parts (2n1u2w) 1015 | -9/Materials | Destroyed 7 combat bots 1169 | -9/Materials | Destroyed by exploding Nuclear Reactor Last Messages --------------- K-01 Serf collects debris. R-06 Scavenger collects Lgt. Ion Engine. K-01 Serf collects debris. R-06 Scavenger destroyed. K-01 Serf collects debris. Acquired 12 matter. K-01 Serf collects debris. R-06 Scavenger collects Lgt. Ion Engine. G-34 Mercenary destroyed. Switching to secondary target: G-34 Mercenary. R-06 Scavenger collects Sml. Laser. G-34 Mercenary destroyed. K-01 Serf collects debris. Acquired 24 matter. K-01 Serf collects debris. K-01 Serf cleans the Nuclear Reactor. K-01 Serf collects debris. Nuclear Reactor explodes. Y-45 Defender destroyed. Lgt. Assault Rifle destroyed. Map ----- +----------------------------------------------------+ | ???????????????????????????????????????????????? | | ???????????????????????????????????????????????? | | ???????????????????????????????????????????????? | | ???????????????????????????????????????????????? | | ???????????????????????????????????????????????? | | ???????????????????????????????????????????????? | | ???????????????????????????????????????????????? | | ???????????????????????????????????????????????? | | ???????????????????????????????????????????????? | | ???????????????????????????????????????????????? | | ???????????????????????????????????????????????? | | ???????????????????????????????????????????????? | | ???????????????????????????????????????????????? | | ???????????????????????????????????????????????? | | ???????????????????????????????????????????????? | | ???????????????????????????????????????????????? | | ???????????????????????????????????????????????? | | ???????????????????????????????????????????????? | | ???????????????????????????????????????????????? | | ???????????????????????????????????????????????? | | ???????????????????????????????????????????????? | | ????????????????????????????###????????????????? | | ??????????????????????????? ?????????????????? | | ??????????????#############Y#??????????????????? | | ??????????????# # % #??????????????????? | | ??????????????# """ # @ #??????????????????? | | ??????????????# """ #! #??????????????????? | | ??????????????# """ # k %#??????????????????? | | ??????????????# """ # k r #??????????????????? | | ????????###+### #% #??????????????????? | | ????????# ###+######/######## #????????????? | | ????????# ! g #???????????? | | ????????# " =% a #???????????? | | ????????# #???????????? | | ????????# ######################???????????? | | ????????## ###############???????????????????? | | ?????????# # #???????????????????? | | ?????????# # #???????????????????? | | ?????????+ + #???????????????????? | | ?????????# # """"" ??????????????????????? | | ?????????# # """""?????????????????????????? | | ?????????# #? """ ?????????????????????????? | | ?????????# #?#################???????????????? | | ?????????# #????# #???????????????? | | ?????????# #????# ! """"" #???????????????? | | ?????????# #????# """"" #???????????????? | | ?????????# #????# """"" #???????????????? | | ?????????# %#????# = #???????????????? | | ?????????# %#??#########+######???????????????? | | ???????#?# #??# #???????????????????? | +----------------------------------------------------+ Best States ------------- Heat Dissipation 38 Energy Generation 10 Energy Capacity 250 Matter Stores 300 Matter Capacity 300 Sight Range 16 Terrain Scan Density 10 Evasion (%) 40 Targeting Accuracy 5 Recoil Reduction 2 Authchip Count 4 Item Schematics ----------------- None Robot Schematics ------------------ None Fabricated ------------ Nothing Repaired ---------- Nothing Studied --------- None Alien Tech Used ----------------- None Achievements -------------- None Challenges ------------ None Game ------ Seed HeartChainCore Manual? 0 Play Time 00:08:08 Cumulative 207.6 hours Start 2025.11.08 @ 07:50:00 End 2025.11.08 @ 07:55:40 Sessions 1 Manual Loads 0 Difficulty Rogue Special Mode None Game No. 603 Rogue 602 Adventurer 1 Explorer 0 Win Type - Total 0 Types 0/0/0/0/0/0/0/0/0/0 Lore% 64 Gallery% 61 Achievement% 37 Wizard Run 0 Options --------- Layout 1 ASCII 0 Keyboard 0 Movement Mouse Keybinds 0 Fullscreen 1 Font 24/Smallcaps Map View 50x35 Zoom Use 0% Tactical HUD 0 Map Filters NONE Filters NONE Steam 1 RUN: 501414fe-df90-466e-9b99-d6f11115ed29